[Event "44th Chess Olympiad Open 2022"]
[Site "Chennai"]
[Date "2022.08.01"]
[Round "4.24"]
[White "Laurusas, Tomas"]
[Black "Tologontegin, Semetey"]
[Result "1-0"]
[WhiteElo "2561"]
[BlackElo "2378"]
[Annotator "TA"]
[PlyCount "151"]
[EventDate "2022.??.??"]
[TimeControl "60"]

{[%evp 10,151,36,18,20,18,28,18,12,9,9,0,10,8,29,13,47,44,54,49,54,43,43,39,36,
43,53,65,122,130,114,110,104,104,115,111,157,157,162,162,164,164,172,163,174,
146,280,86,84,29,14,0,0,0,0,0,0,0,0,8,12,0,154,146,158,143,145,164,187,160,204,
204,177,66,62,64,98,20,20,23,20,8,8,8,8,0,0,0,0,0,8,0,8,0,0,0,8,8,8,0,8,0,0,0,
0,0,0,0,8,0,8,8,8,8,14,0,0,8,8,0,8,8,8,8,8,8,14,0,8,8,29974,29975,29974,29976,
29972,8,29979,29980,29980,29981,29982,29983,29984,29985]} 1. d4 {[%emt 0:00:03]
ChessBase II} Nf6 {[%emt 0:03:39]} 2. c4 {[%emt 0:00:13]} e6 {[%emt 0:00:06]}
3. Nf3 {[%emt 0:00:06]} Bb4+ {[%emt 0:00:04]} 4. Bd2 {[%emt 0:01:53]} Qe7 {
[%emt 0:00:12]} 5. g3 {[%emt 0:01:41]} Bxd2+ {[%emt 0:00:41]} 6. Qxd2 {[%emt 0:
00:00]} Nc6 {[%emt 0:00:48] E11: Bogo-Indian.} 7. Nc3 {[%emt 0:11:00]} d5 {
[%emt 0:01:08]} 8. cxd5 {[%emt 0:01:05]} exd5 {[%emt 0:00:08] The position is
equal.} 9. Qf4 $5 {[%emt 0:00:24] An interesting side line.} O-O {[%emt 0:00:
48]} 10. Bg2 {[%emt 0:00:31]} Re8 {[%emt 0:05:52]} 11. O-O {[%emt 0:00:00] [#]}
a6 $146 {[%emt 0:00:08]} ({Predecessor:} 11... Nd8 12. Rad1 c6 13. Qc1 Ne4 14.
Ne5 Bf5 15. Rfe1 f6 16. Nd3 Nf7 17. Nxe4 Bxe4 {½-½ (27) Dorfman, J (2547)
-Tregubov,P (2578) Brest 2018 EXT 2019 [ChessBase II]}) 12. Rac1 {[%emt 0:01:
29]} Na7 {[%emt 0:24:05]} 13. Nd2 {[%emt 0:15:46]} c6 {[%emt 0:00:00]} 14. e4 {
[%emt 0:02:28]} dxe4 {[%emt 0:00:00]} 15. Ndxe4 {[%emt 0:00:08]} Nxe4 {[%emt 0:
00:00]} 16. Nxe4 {[%emt 0:00:06]} Nb5 {[%emt 0:00:00]} 17. Rfe1 {[%emt 0:11:15]
[%cal Ye4f6]} Be6 {[%emt 0:00:00]} 18. Nc5 {[%emt 0:08:30]} Rad8 {[%emt 0:00:
00]} ({Black should play} 18... Qd6 $14) 19. d5 $1 $16 {[%emt 0:00:00]} cxd5 {
[%emt 0:00:00]} 20. a4 $1 {[%emt 0:00:14]} Na7 {[%emt 0:52:37]} 21. Nxe6 {
[%emt 0:00:06] 0x0.001eb902e7b5dp-1022s more active pieces.} fxe6 {[%emt 0:00:
05]} 22. Rc7 $36 {[%emt 0:00:04][%cal Yc1c7,Yc7b7,Yb7b6] White is on the roll.}
Qf6 {[%emt 0:00:03]} (22... Rd7 $2 23. Bxd5 $1 Qd6 24. Rxd7 Qxd7 25. Qf5 $1 $18
) (22... Qf8 $142) 23. Qxf6 {[%emt 0:00:00]} (23. Rxb7 $6 Qxf4 24. gxf4 Nc6 $14
) 23... gxf6 {[%emt 0:01:03]} 24. Rxb7 {[%emt 0:00:04]} Nc6 {[%emt 0:00:07]}
25. Rb6 {[%emt 0:02:50][%csl Ya6,Yc6]} Nd4 {[%emt 0:04:39]} 26. Rd1 {[%emt 0:
00:09]} (26. Rxa6 $6 Ra8 27. Rxa8 Rxa8 $14) 26... Nc2 {[%emt 0:01:24]} 27. Bh3
{[%emt 0:08:00] aiming for Rd2.} (27. Rxa6 Ra8 28. Rxa8 Rxa8 $16) 27... Kf7 {
[%emt 0:00:50]} (27... f5 $16 28. Rxa6 Nb4) 28. Rc1 $2 {[%emt 0:00:06]} (28.
Rxa6 Rb8 $16) (28. Rd2 $18) 28... Nd4 {[%emt 0:03:35]} 29. Rc7+ {[%emt 0:02:43]
} (29. Bg4 $16 Kg6 30. Rd1 (30. Rxa6 Ra8 $16)) 29... Re7 $11 {[%emt 0:00:04]}
30. Rcb7 {[%emt 0:09:49]} a5 {[%emt 0:00:00]} 31. b4 {[%emt 0:02:33]} axb4 {
[%emt 0:00:19]} 32. Rxb4 {[%emt 0:00:01]} Nf3+ {[%emt 0:00:47]} 33. Kg2 {
[%emt 0:00:30]} Ne1+ {[%emt 0:00:04]} 34. Kf1 {[%emt 0:00:04]} Nd3 {[%emt 0:00:
16]} 35. R4b5 {[%emt 0:02:52]} Rc8 $2 {[%emt 0:00:00]} (35... Ne5 $11) 36.
Rxe7+ $16 {[%emt 0:00:30]} Kxe7 {[%emt 0:00:08] Endgame KRB-KRN} 37. Rb7+ {
[%emt 0:00:02]} Kd6 {[%emt 0:00:32]} 38. Rb6+ {[%emt 0:00:01]} ({Not} 38. Rxh7
Rc2 39. Ra7 Rxf2+ 40. Kg1 Ke5 $17) 38... Kc5 {[%emt 0:01:31]} 39. Rxe6 {
[%emt 0:00:15] Hoping for Re3.} ({Don't take} 39. Bxe6 $6 Kxb6 40. Bxc8 Nc5 $16
) 39... Rb8 {[%emt 0:01:15]} 40. Bf5 {[%emt 0:00:00]} ({Don't do} 40. Rxf6 Rb1+
41. Ke2 Kd4) 40... Rb1+ {[%emt 0:00:19]} 41. Kg2 {[%emt 0:37:17]} ({White
should try} 41. Ke2 $18 Kd4 42. Bxd3 Rb2+ 43. Kf3 Kxd3 44. Rxf6) 41... Ne1+ $14
{[%emt 0:02:21]} 42. Kh3 {[%emt 0:00:00]} Ra1 {[%emt 0:00:08]} 43. Rxf6 {
[%emt 0:00:00]} (43. Kg4 $16) 43... d4 $11 {[%emt 0:00:00]} 44. Bxh7 {[%emt 0:
00:00] White wants to play Re6.} d3 {[%emt 0:00:20] Strongly threatening ...d2.
} 45. Bxd3 {[%emt 0:00:00]} Nxd3 {[%emt 0:00:04] KRN-KR} 46. a5 {[%emt 0:00:00]
} Kd4 {[%emt 0:07:13]} 47. g4 {[%emt 0:01:33]} Rxa5 {[%emt 0:05:10]} 48. Kh4 {
[%emt 0:00:20]} Ra2 {[%emt 0:01:42]} 49. Kg3 {[%emt 0:00:16]} Ke5 {[%emt 0:02:
19] Against Rd6} 50. Rf3 {[%emt 0:01:57]} Ke4 {[%emt 0:02:48]} 51. h4 {[%emt 0:
01:31]} Ra1 {[%emt 0:00:05]} 52. Rf8 {[%emt 0:00:00]} Ne5 {[%emt 0:03:07]} 53.
Rf4+ {[%emt 0:00:10]} Kd5 {[%emt 0:00:01]} 54. h5 {[%emt 0:01:37]} Ke6 {
[%emt 0:00:36]} 55. f3 {[%emt 0:00:53]} Rg1+ {[%emt 0:00:00]} 56. Kh4 {[%emt 0:
01:11]} Rf1 {[%emt 0:00:11]} 57. Kg3 {[%emt 0:00:03]} Rg1+ {[%emt 0:00:04]} 58.
Kh3 {[%emt 0:00:02]} Rd1 {[%emt 0:04:11]} 59. Rf5 {[%emt 0:00:27]} Rc1 {
[%emt 0:01:41]} 60. Kg3 {[%emt 0:00:09]} Rb1 {[%emt 0:00:00]} 61. Rf8 {[%emt 0:
00:53]} Ke7 {[%emt 0:00:11]} 62. Rf4 {[%emt 0:00:42] White has compensation.}
Ke6 {[%emt 0:00:57]} 63. Rf5 {[%emt 0:00:00]} Ra1 {[%emt 0:00:59]} 64. Kf4 {
[%emt 0:00:07]} Nf7 {[%emt 0:02:04]} 65. Rb5 {[%emt 0:00:01]} Ra4+ {[%emt 0:00:
33]} 66. Kg3 {[%emt 0:00:01][%cal Yh5h6]} Ra3 {[%emt 0:01:55]} 67. Rb6+ {
[%emt 0:00:40]} Ke7 {[%emt 0:00:01]} 68. h6 {[%emt 0:00:48][%cal Yh5h6,Yh6h7]}
Ne5 {[%emt 0:00:03]} 69. Kf4 {[%emt 0:00:36]} Nxf3 $2 {[%emt 0:01:35]} (69...
Nf7 $11) 70. h7 {[%emt 0:00:42]} Ra8 {[%emt 0:00:01]} 71. Kxf3 {[%emt 0:00:59]}
Kf7 {[%emt 0:00:00] [#]} 72. Rh6 $2 {[%emt 0:00:08]} (72. g5 $1 {mates} Kg7 73.
g6 Ra3+ 74. Kf4 Ra8 75. Re6 Ra4+ 76. Kf5 Ra5+ 77. Re5) 72... Rh8 $2 {[%emt 0:
00:07]} (72... Kg7 $11 73. Rh1 Ra3+ 74. Ke2 Ra2+ 75. Kf3 Ra3+ 76. Kf2 Ra2+ 77.
Kf3 Ra3+) 73. Kf4 {[%emt 0:00:04] White mates.} Kf8 {[%emt 0:02:04]} 74. Kg5 {
[%emt 0:00:00]} Kg7 {[%emt 0:00:08]} 75. Rg6+ {[%emt 0:00:39]} Kf7 {[%emt 0:00:
45]} 76. Kh6 {[%emt 0:00:05] Weighted Error Value: White=0.13 (very precise) /
Black=0.15 (very precise)} 1-0

[Event "44th Chess Olympiad Open 2022"]
[Site "Chennai"]
[Date "2022.08.01"]
[Round "4.24"]
[White "Pultinevicius, Paulius"]
[Black "Abdyjapar, Asyl"]
[Result "1-0"]
[WhiteElo "2539"]
[BlackElo "2306"]
[Annotator "TA"]
[PlyCount "51"]
[EventDate "2022.??.??"]
[TimeControl "60"]

{[%evp 23,51,27,37,32,50,51,52,52,55,44,50,56,52,19,25,31,84,93,88,95,132,110,
137,140,550,551,547,538,519,494]} 1. d4 {[%emt 0:00:02]} Nf6 {[%emt 0:00:04]}
2. c4 {[%emt 0:00:04]} g6 {[%emt 0:00:03]} 3. Nc3 {[%emt 0:00:04]} Bg7 {
[%emt 0:00:03]} 4. e4 {[%emt 0:00:06]} d6 {[%emt 0:00:02]} 5. Nf3 {[%emt 0:00:
00]} O-O {[%emt 0:00:06]} 6. Be2 {[%emt 0:00:03]} e5 {[%emt 0:00:06]} 7. O-O {
[%emt 0:00:04]} Nc6 {[%emt 0:00:02]} 8. Be3 {[%emt 0:00:06]} Ng4 {[%emt 0:00:
00]} 9. Bg5 {[%emt 0:00:06]} f6 {[%emt 0:00:05]} 10. Bh4 {[%emt 0:00:04]} g5 {
[%emt 0:00:27]} 11. Bg3 {[%emt 0:00:05]} Nh6 {[%emt 0:00:10]} 12. dxe5 {
[%emt 0:00:06]} fxe5 {[%emt 0:00:13]} 13. Nd5 $1 {[%emt 0:05:06] is recently
more successful than 13.h3. E97: King's Indian: Classical Main Line (6...e5 7
0-0 Nc6): 8 Be3 and 8 d5 Ne7, not 9 Ne1.} g4 {[%emt 0:04:15]} 14. Bh4 {[%emt 0:
01:44]} Qd7 {[%emt 0:01:08] [#]} 15. Nd2 $146 {[%emt 0:01:19] White is
slightly better.} ({Predecessor:} 15. Ne1 Nd4 16. Nc2 Kh8 17. Qd2 Rf7 18. Rae1
Qe8 19. Bg5 Ng8 20. Bd1 Be6 21. b3 {0-1 (36) Petrosyan,M (2637)-Grischuk, A 
(2764) Chess.com INT 2022}) 15... Nd4 {[%emt 0:03:36]} 16. f3 {[%emt 0:00:20]}
c6 {[%emt 0:02:06]} 17. Ne7+ {[%emt 0:02:40]} Kh8 {[%emt 0:00:05]} 18. Nxc8 {
[%emt 0:14:14]} (18. fxg4 {with more complications.} Nxe2+ 19. Qxe2 Qxg4 20.
Rxf8+ Bxf8 21. Qf2) 18... Raxc8 {[%emt 0:00:45]} 19. fxg4 {[%emt 0:00:10]} (19.
Bf2 {feels hotter.} Rce8 20. fxg4 Nxe2+ 21. Qxe2 Nxg4 22. Bh4) 19... Rxf1+ {
[%emt 0:03:19]} (19... Nxe2+ $14 20. Qxe2 Nxg4) 20. Nxf1 $16 {[%emt 0:00:22]}
Nxe2+ {[%emt 0:02:21]} 21. Qxe2 {[%emt 0:00:15]} Nxg4 {[%emt 0:00:02]} 22. Rd1
{[%emt 0:08:22]} Rf8 {[%emt 0:05:48]} 23. h3 {[%emt 0:01:48][%cal Yh2h3,Yh3g4]}
Bf6 $2 {[%emt 0:10:34] [#]} (23... Nf6 $16 {is tougher.} 24. Ng3 Rf7) 24. Qxg4
$18 {[%emt 0:00:19] White is clearly winning.} Qxg4 {[%emt 0:00:33]} 25. Bxf6+
{[%emt 0:00:06]} ({Not} 25. hxg4 Bxh4 26. Rxd6 Bf2+ 27. Kh2 Rf4 $11) 25... Rxf6
{[%emt 0:00:09]} 26. hxg4 {[%emt 0:00:04] Weighted Error Value: White=0.06 
(flawless) /Black=0.84} 1-0

[Event "44th Chess Olympiad Open 2022"]
[Site "Chennai"]
[Date "2022.08.01"]
[Round "4.24"]
[White "Markov, Mikhail"]
[Black "Juksta, Karolis"]
[Result "1/2-1/2"]
[WhiteElo "2333"]
[BlackElo "2412"]
[Annotator "RC"]
[PlyCount "100"]
[EventDate "2022.??.??"]
[TimeControl "60"]

1. d4 {[%emt 0:00:12]} d5 {[%emt 0:00:27]} 2. Bf4 {[%emt 0:00:11]} Nf6 {
[%emt 0:00:24]} 3. e3 {[%emt 0:00:12]} c5 {[%emt 0:00:21]} 4. c3 {[%emt 0:00:
00]} Nc6 {[%emt 0:00:43]} 5. Nf3 {[%emt 0:00:19]} Nh5 {[%emt 0:02:40]} 6. dxc5
{[%emt 0:03:00]} Nxf4 {[%emt 0:01:27]} 7. exf4 {[%emt 0:00:05]} e6 {[%emt 0:00:
00]} 8. b4 {[%emt 0:20:13]} Qf6 {[%emt 0:22:13]} 9. Bb5 {[%emt 0:00:00]} Qxf4 {
[%emt 0:01:06]} 10. O-O {[%emt 0:00:00]} Be7 {[%emt 0:01:41]} 11. Qd4 {[%emt 0:
00:00]} Qxd4 {[%emt 0:16:43]} 12. cxd4 {[%emt 0:00:00]} a5 {[%emt 0:05:35]} 13.
bxa5 {[%emt 0:04:58]} Rxa5 {[%emt 0:00:15]} 14. a4 {[%emt 0:00:13]} Bd7 {
[%emt 0:00:41]} 15. Nbd2 {[%emt 0:00:47]} f6 {[%emt 0:05:23]} 16. Nb3 {[%emt 0:
00:00]} Ra7 {[%emt 0:00:10]} 17. Ne1 {[%emt 0:03:23]} Kf7 {[%emt 0:02:37]} 18.
Nd3 {[%emt 0:05:31]} Rha8 {[%emt 0:00:31]} 19. f4 {[%emt 0:01:47]} h6 {[%emt 0:
00:00]} 20. Rfe1 {[%emt 0:02:08]} g5 {[%emt 0:01:24]} 21. Re2 {[%emt 0:03:46]}
Bd8 {[%emt 0:05:00]} 22. g3 {[%emt 0:22:18]} Bc8 {[%emt 0:00:43]} 23. Kg2 {
[%emt 0:11:37]} Ne7 {[%emt 0:03:05]} 24. fxg5 {[%emt 0:05:58]} hxg5 {[%emt 0:
00:00]} 25. h3 {[%emt 0:00:11]} Bc7 {[%emt 0:02:48]} 26. Nb4 {[%emt 0:03:59]}
Nf5 {[%emt 0:08:12]} 27. g4 {[%emt 0:00:13]} Nh4+ {[%emt 0:00:29]} 28. Kf2 {
[%emt 0:00:09]} Ng6 {[%emt 0:00:11]} 29. Re3 {[%emt 0:01:34]} Nf4 {[%emt 0:00:
00]} 30. Nd3 {[%emt 0:02:02]} b6 {[%emt 0:06:20]} 31. Nxf4 {[%emt 0:03:12]}
gxf4 {[%emt 0:00:53]} 32. Rc3 {[%emt 0:00:09]} bxc5 {[%emt 0:00:17]} 33. Nxc5 {
[%emt 0:02:34]} Ba5 {[%emt 0:00:10]} 34. Rc2 {[%emt 0:00:19]} Rc7 {[%emt 0:00:
00]} 35. Rac1 {[%emt 0:00:28]} Bb6 {[%emt 0:02:32]} 36. Kf3 {[%emt 0:01:16]} e5
{[%emt 0:00:15]} 37. Nb3 {[%emt 0:00:05]} Rxc2 {[%emt 0:00:39]} 38. Rxc2 {
[%emt 0:00:04]} Bb7 {[%emt 0:00:52]} 39. h4 {[%emt 0:02:30]} Rc8 {[%emt 0:00:
00]} 40. Rxc8 {[%emt 0:00:46]} Bxc8 {[%emt 0:00:01]} 41. Bc6 {[%emt 0:31:38]}
Be6 {[%emt 0:18:28]} 42. a5 {[%emt 0:00:00]} Bc7 {[%emt 0:00:53]} 43. a6 {
[%emt 0:00:00]} e4+ {[%emt 0:00:08]} 44. Kg2 {[%emt 0:00:00]} Bb6 {[%emt 0:00:
00]} 45. Nc5 {[%emt 0:00:00]} Ke7 {[%emt 0:03:56]} 46. h5 {[%emt 0:00:00]} Bxg4
{[%emt 0:04:44]} 47. h6 {[%emt 0:00:00]} Kf7 {[%emt 0:02:43]} 48. Bxd5+ {
[%emt 0:00:00]} Kg6 {[%emt 0:00:09]} 49. Nxe4 {[%emt 0:00:00]} Kxh6 {[%emt 0:
00:00]} 50. Nxf6 {[%emt 0:00:00]} Be2 {[%emt 0:00:19]} 1/2-1/2

[Event "44th Chess Olympiad Open 2022"]
[Site "Chennai"]
[Date "2022.08.01"]
[Round "4.24"]
[White "Degenbaev, Aziz"]
[Black "Kazakouski, Valery"]
[Result "0-1"]
[WhiteElo "2215"]
[BlackElo "2528"]
[Annotator "TA"]
[PlyCount "66"]
[EventDate "2022.??.??"]
[TimeControl "60"]

{[%evp 16,66,-4,0,0,-33,-32,-39,-36,-50,-43,-68,-33,-46,-47,-53,-35,-52,-21,
-48,-50,-50,-23,-37,-40,-100,-100,-100,-100,-104,-107,-103,-131,-187,-185,-172,
-186,-194,-197,-260,-275,-281,-276,-278,-275,-301,-250,-717,-712,-711,-714,
-658,-665]} 1. Nf3 {[%emt 0:00:09]} Nf6 {[%emt 0:01:00]} 2. c4 {[%emt 0:00:36]}
e6 {[%emt 0:01:15]} 3. g3 {[%emt 0:00:48]} d5 {[%emt 0:00:16]} 4. b3 {[%emt 0:
00:00]} d4 {[%emt 0:00:43]} 5. Bg2 {[%emt 0:01:08]} c5 {[%emt 0:00:19]} 6. e3 {
[%emt 0:02:56]} Nc6 {[%emt 0:00:15]} 7. exd4 {[%emt 0:00:26]} cxd4 {[%emt 0:00:
00]} 8. O-O {[%emt 0:03:33]} Bd6 {[%emt 0:03:37]} 9. d3 {[%emt 0:01:12]} O-O {
[%emt 0:00:31] A13: English Opening: 1...e6.} 10. Na3 {[%emt 0:01:27] 10.Bg5
is the fancy move.} e5 {[%emt 0:06:13]} 11. Nc2 {[%emt 0:01:27]} a5 {[%emt 0:
00:00] Black is slightly better.} 12. Re1 {[%emt 0:03:43]} h6 {[%emt 0:03:20]}
13. Bb2 {[%emt 0:10:51][%cal Yc4c5]} Re8 {[%emt 0:05:18]} 14. a3 {[%emt 0:00:
00][%cal Yb3b4] [#]} Qc7 $146 {[%emt 0:11:42]} ({Predecessor:} 14... Bf5 15.
Rb1 Nd7 16. Ba1 Nc5 17. Bf1 Na6 18. Nd2 Bh7 19. Qf3 f5 20. Nxd4 Nxd4 21. Bxd4 {
1-0 (32) Tomashevsky,E (2555)-Vitiugov,N (2519) Belfort 2005}) 15. Qd2 {
[%emt 0:10:25]} Rb8 {[%emt 0:12:38]} 16. Rac1 {[%emt 0:13:36]} Bf5 {[%emt 0:00:
00]} 17. b4 {[%emt 0:17:21]} b6 {Prevents c5.} 18. Re2 {[%emt 0:14:26]} axb4 {
[%emt 0:08:30]} 19. Nxb4 {[%emt 0:00:00]} Na5 {[%emt 0:04:22][%cal Yc6a5,Ya5b3,
Yb3c5,Yc5e6]} 20. Rce1 {[%emt 0:00:00]} (20. Qc2 $15) 20... Nb3 $17 {[%emt 0:
02:23]} 21. Qd1 {[%emt 0:00:00]} Nc5 {[%emt 0:00:33] Inhibits Na6. Black is
much more active.} 22. h3 {[%emt 0:00:00]} Rbc8 {[%emt 0:04:06]} 23. g4 {
[%emt 0:00:00]} Bd7 {[%emt 0:01:59]} 24. Nd2 {[%emt 0:00:55]} (24. Nh4 $17)
24... Ne6 $19 {[%emt 0:03:22]} 25. Ne4 {[%emt 0:00:30] [#]} Nxe4 $1 {[%emt 0:
00:00]} 26. Nd5 {[%emt 0:00:25]} Qa7 {[%emt 0:04:23]} 27. Rxe4 {[%emt 0:00:55]}
(27. Bxe4 {might work better.} b5 28. cxb5) 27... b5 {[%emt 0:01:46]} 28. cxb5
{[%emt 0:00:40]} Bxb5 {[%emt 0:00:28]} 29. R4e2 {[%emt 0:00:15]} Bc6 {[%emt 0:
00:00] [#] Strongly threatening ...Qb7.} ({Stronger than} 29... Bxa3 30. Bxa3
Qxa3 31. Rxe5 $15) 30. Rc2 {[%emt 0:00:40][%cal Yc2c6]} Ba8 {[%emt 0:02:12]
Hoping for ...Rxc2.} 31. Bc1 $2 {[%emt 0:00:31]} (31. Rxc8 Rxc8 32. Bc1) 31...
Rxc2 {[%emt 0:00:48] Black is clearly winning.} 32. Qxc2 {[%emt 0:00:01]} Bxd5
{[%emt 0:00:31]} 33. Bxd5 {[%emt 0:00:57]} Qa5 {[%emt 0:00:10] Weighted Error
Value: White=0.30/Black=0.06 (flawless)} 0-1

[Event "44th Chess Olympiad Open 2022"]
[Site "Chennai"]
[Date "2022.08.01"]
[Round "4.25"]
[White "Pelletier, Yannick"]
[Black "Saraci, Korab"]
[Result "1/2-1/2"]
[WhiteElo "2551"]
[BlackElo "2287"]
[Annotator "TA"]
[PlyCount "97"]
[EventDate "2022.??.??"]
[TimeControl "60"]

{[%evp 14,97,18,16,20,9,15,10,10,0,52,52,57,50,55,57,42,35,67,52,49,41,77,58,
58,54,70,69,64,68,75,64,70,76,68,-114,-120,-170,-155,-158,-107,-122,-122,-118,
-82,-120,-120,-120,-120,-120,-120,-120,-120,-152,-152,-137,-120,-119,-54,-53,
-53,-175,-25,-77,-39,-53,-31,-162,-31,-31,-22,-22,-16,-22,0,0,0,0,0,0,0,0,0,0,
0,0]} 1. d4 {[%emt 0:00:10]} Nf6 {[%emt 0:00:06]} 2. c4 {[%emt 0:00:14]} e6 {
[%emt 0:00:04]} 3. Nf3 {[%emt 0:00:25]} d5 {[%emt 0:00:07]} 4. Nc3 {[%emt 0:00:
00]} c5 {[%emt 0:00:09]} 5. cxd5 {[%emt 0:05:31]} cxd4 {[%emt 0:06:59]} 6. Qxd4
{[%emt 0:04:25]} exd5 {[%emt 0:06:00]} 7. Bg5 {[%emt 0:00:15]} Be7 {[%emt 0:00:
00]} 8. e3 {[%emt 0:08:55]} Nc6 {[%emt 0:03:37] D50: Queen's Gambit Declined:
Dutch-Peruvian Gambit.} 9. Qa4 {[%emt 0:02:07]} O-O {[%emt 0:00:43]} 10. Be2 {
[%emt 0:04:25]} Be6 {[%emt 0:06:23]} 11. O-O {[%emt 0:01:59] [#]} Nd7 $146 {
[%emt 0:06:10]} (11... Qb6 $11) ({Predecessor:} 11... Qb6 12. Qb5 h6 13. Qxb6 {
½-½ (13) Khenkin,I (2617)-Brkic,A (2578) Bol 2013}) 12. Bxe7 $14 {[%emt 0:00:
00]} Qxe7 {[%emt 0:08:18]} 13. Rfd1 {[%emt 0:00:19]} Nb6 {[%emt 0:01:51]} 14.
Qb5 {[%emt 0:12:57]} Rfd8 {[%emt 0:04:23]} 15. Nd4 {[%emt 0:08:01]} Ne5 {
[%emt 0:08:27]} 16. Na4 {[%emt 0:14:57]} Nxa4 {[%emt 0:05:33]} 17. Qxa4 {
[%emt 0:00:04]} Bg4 {[%emt 0:01:44]} 18. Bxg4 {[%emt 0:09:29]} Nxg4 {[%emt 0:
00:00]} 19. Ne2 {[%emt 0:00:11]} Nxe3 {[%emt 0:12:06]} 20. fxe3 {[%emt 0:00:06]
} Qxe3+ {[%emt 0:00:05]} 21. Kf1 {[%emt 0:00:05]} Rd6 $1 {[%emt 0:00:16] [#]} (
21... Re8 $2 22. Re1 $18) 22. Qd4 {[%emt 0:01:50]} (22. Qf4 $2 Rf6 23. Qxf6
gxf6 $19) 22... Rf6+ {[%emt 0:00:36]} 23. Ke1 {[%emt 0:00:02]} Qh6 {[%emt 0:00:
00]} 24. h3 $2 {[%emt 0:03:36]} (24. Rd3 $14 {keeps the upper hand.}) 24... Re8
$36 {[%emt 0:01:04] Black is on the roll.} 25. Rd2 {[%emt 0:07:15]} (25. Rac1
$17) 25... Qg5 $19 {[%emt 0:02:29]} 26. Qg1 {[%emt 0:06:07]} d4 {[%emt 0:11:11]
} (26... Qf4 27. Rc1 $14) ({Better is} 26... Rfe6 {[%cal Yd5d4] . ..d4! is the
strong threat.} 27. a3 h6) 27. Rxd4 $17 {[%emt 0:05:14] [#]} ({Don't blunder} 
27. Kd1 $2 Qe3 28. Qxe3 dxe3 $19) 27... Qc5 $1 {[%emt 0:10:17]} ({Don't play} 
27... Rfe6 $6 28. Rd2 $11) 28. Rad1 {[%emt 0:01:26]} h6 {[%emt 0:00:00]} ({
Reject} 28... Rfe6 $6 29. R1d2 Qc1+ 30. Kf2 Rf6+ 31. Kg3 Qc7+ 32. Nf4 $11) 29.
a3 {[%emt 0:01:00]} Rfe6 {[%emt 0:01:16]} 30. Qf2 {[%emt 0:00:29]} Rxe2+ {
[%emt 0:00:24]} 31. Qxe2 {[%emt 0:00:03]} Rxe2+ {[%emt 0:00:07]} 32. Kxe2 {
[%emt 0:00:04] Endgame KQ-KRR} Qb5+ {[%emt 0:00:05]} 33. R1d3 {[%emt 0:01:26]}
Qxb2+ {[%emt 0:00:19]} 34. Kf3 {[%emt 0:00:06]} a5 {[%emt 0:00:00]} 35. a4 {
[%emt 0:01:21]} b5 {[%emt 0:00:22]} (35... g5 $17 {White must now prevent ...
b5.} 36. h4 b5 37. axb5 Qxb5) 36. axb5 $15 {[%emt 0:00:50]} Qxb5 {[%emt 0:00:
26]} 37. Rd5 {[%emt 0:00:33]} (37. Kg3 $1 $15) 37... Qa6 {[%emt 0:00:00]} ({
Black should try} 37... Qb7 $19 {Hoping for ...a4.} 38. Kg3 a4 39. Rd8+ Kh7)
38. Rd6 {[%emt 0:00:17]} (38. Ra3 $11) 38... Qb7+ {[%emt 0:00:33]} 39. Kg3 $1 {
[%emt 0:01:02]} a4 {[%emt 0:00:22] Threatens to win with ...Qc7.} 40. Rd7 {
[%emt 0:00:30] Against Qc7+} (40. Kh2 $1 $15) 40... Qb2 {[%emt 0:00:00]} ({
Black should play} 40... Qb8+ $19 41. Kf2 Kh7) 41. Kh2 {[%emt 0:08:19]} Qe5+ {
[%emt 0:11:42]} 42. Kh1 {[%emt 0:00:09] The position is equal.} Qa5 {[%emt 0:
02:00] aiming for ...a3.} 43. Ra3 {[%emt 0:06:47]} Qb4 {[%emt 0:00:28]} 44. Ra1
{[%emt 0:01:32]} Qb2 {[%emt 0:09:34]} 45. Rxa4 {[%emt 0:00:36]} Qb1+ {[%emt 0:
00:12]} 46. Kh2 {[%emt 0:00:04] Active counter play!} Qb8+ {[%emt 0:00:00]} 47.
Kh1 {[%emt 0:00:06]} Qb1+ {[%emt 0:00:18]} 48. Kh2 {[%emt 0:00:03]} Qb8+ {
[%emt 0:00:07]} 49. Kh1 {[%emt 0:00:02] And White is the lucky defender.
Weighted Error Value: White=0.23 (precise) /Black=0.25 (precise)} 1/2-1/2

[Event "44th Chess Olympiad Open 2022"]
[Site "Chennai"]
[Date "2022.08.01"]
[Round "4.25"]
[White "Saraci, Nderim"]
[Black "Bogner, Sebastian"]
[Result "1/2-1/2"]
[WhiteElo "2495"]
[BlackElo "2545"]
[Annotator "TA"]
[PlyCount "47"]
[EventDate "2022.??.??"]
[TimeControl "60"]

{[%evp 18,47,0,10,8,8,16,0,24,0,14,0,1,0,0,0,0,0,0,12,22,0,0,0,7,0,0,0,0,0,0,0]
} 1. d4 {[%emt 0:00:04]} Nf6 {[%emt 0:00:07]} 2. c4 {[%emt 0:00:07]} e6 {
[%emt 0:00:06]} 3. Nf3 {[%emt 0:00:10]} d5 {[%emt 0:00:06]} 4. g3 {[%emt 0:00:
00]} Bb4+ {[%emt 0:00:05]} 5. Bd2 {[%emt 0:00:44]} Be7 {[%emt 0:02:23]} 6. Bg2
{[%emt 0:02:25]} O-O {[%emt 0:00:31]} 7. O-O {[%emt 0:00:38]} c6 {[%emt 0:00:
00]} 8. b3 {[%emt 0:06:04]} b6 {[%emt 0:07:31]} 9. Qc2 {[%emt 0:08:51]} Nbd7 {
[%emt 0:12:49]} 10. Rd1 {[%emt 0:01:40]} a5 {[%emt 0:21:06] E11: Bogo-Indian.}
11. Bc3 {[%emt 0:05:46]} Bb7 {[%emt 0:02:26]} 12. Nbd2 {[%emt 0:23:45]} c5 {
[%emt 0:09:17] [#]} 13. dxc5 $146 {[%emt 0:06:58]} ({Predecessor:} 13. Rac1 Qc7
14. Qb1 Rac8 15. cxd5 Bxd5 16. e4 Bb7 17. Bb2 Qb8 18. e5 Nd5 19. Nc4 {0-1 (52)
Hera,I (2614)-Volokitin,A (2633) Hungary 2019}) 13... Bxc5 {[%emt 0:00:00] The
position is equal.} 14. Qb2 {[%emt 0:25:33]} b5 {[%emt 0:10:23]} 15. cxb5 {
[%emt 0:00:00]} Qb6 {[%emt 0:00:00][%csl Yb5,Yf2]} 16. e3 {[%emt 0:01:57]} Qxb5
{[%emt 0:01:30]} 17. Ne5 {[%emt 0:07:39]} Nxe5 {[%emt 0:00:20]} 18. Bxe5 {
[%emt 0:00:46]} Be7 {[%emt 0:00:37]} 19. Rac1 {[%emt 0:00:00]} (19. a4 $5 {
[%cal Ra4b5]} Qe2 20. Bf3 $11) 19... Rfc8 {[%emt 0:00:00]} 20. Nb1 {[%emt 0:00:
00]} Qb4 {[%emt 0:00:00]} 21. Bc3 {[%emt 0:06:29]} Qb5 {[%emt 0:04:03]} 22. Be5
{[%emt 0:00:00]} Qb4 {[%emt 0:01:30]} 23. Bc3 {[%emt 0:00:00]} Qb5 {[%emt 0:00:
00]} 24. Be5 {[%emt 0:00:00] An interesting draw. Weighted Error Value:
White=0.04 (flawless) /Black=0.03 (flawless)} 1/2-1/2